bitfinex-derivatives/quotes_ETHF0:USTF0_20250214
["timestamp","ask_amount","ask_price","bid_price","bid_amount"]
[1739543730149,3.2078,2706.5,2706.3,2.44589]
[1739543730349,0.7389,2706.3,2706.2,0.5802]
[1739543730563,0.7389,2706.3,2706.2,2.2842]
[1739543731961,0.73898,2706.0,2705.9,0.5784]
[1739543732157,0.73898,2706.0,2705.9,2.2814]
[1739543732364,0.73898,2706.0,2705.9,1.703]
[1739543732965,0.73881,2706.7,2705.9,1.703]
[1739543733260,1.1559,2706.8,2706.0,1.173529]
[1739543733460,3.2078,2706.3,2705.9,1.703]
[1739543733856,3.2078,2706.0,2705.7,1.42214747]
[1739543734064,0.73904,2705.8,2705.7,1.42214747]
[1739543734252,0.73904,2705.8,2705.7,1.70854518]
[1739543735564,4.58658696,2706.2,2705.7,1.70854518]
[1739543735763,3.2078,2706.6,2705.7,1.70854518]
[1739543735957,3.7455,2706.6,2705.8,3.2078]
[1739543736360,0.73886,2706.5,2706.3,0.73889]
[1739543736666,3.2078,2706.6,2706.3,1.706]
[1739543736858,0.73887,2706.4,2706.3,1.706]
[1739543737168,0.73886,2706.5,2706.3,2.44488]
[1739543737351,3.2078,2706.6,2705.8,3.2078]
[1739543737553,3.2078,2706.6,2706.0,0.73896]
[1739543737554,0.73893,2706.2,2706.0,0.73896]
[1739543737864,0.73892,2706.3,2706.1,0.73895]
[1739543738064,3.2078,2706.6,2705.9,1.705]
[1739543738263,0.73894,2706.2,2706.0,0.73897]
[1739543738562,3.2078,2706.3,2705.9,1.705]
[1739543738960,3.2078,2706.3,2706.0,0.73896]
[1739543739161,0.73894,2706.2,2705.8,3.2078]
[1739543739461,3.2078,2706.0,2705.7,0.74460518]
[1739543739660,0.73903,2705.9,2705.8,1.705]
[1739543739863,3.9468,2706.0,2705.8,2.44403]
[1739543740363,0.73901,2705.9,2705.8,1.705]
[1739543740557,3.2078,2706.0,2705.9,0.73901]
[1739543740762,0.5878,2706.2,2705.8,1.705]
[1739543741062,3.2078,2706.0,2705.7,1.71254518]
[1739543741265,0.73902,2705.9,2705.7,2.45159518]
[1739543741473,3.2078,2706.0,2705.9,0.73901]
[1739543741667,0.73902,2705.9,2705.7,1.71254518]
[1739543741961,0.5878,2706.2,2705.7,1.71254518]
[1739543742163,0.73904,2705.8,2705.7,0.00554518]
[1739543742358,0.73904,2705.8,2705.7,1.71154518]
[1739543743167,3.2078,2706.0,2705.9,0.73901]
[1739543743358,3.94678,2706.0,2705.8,0.73903]
[1739543743559,3.94678,2706.0,2705.7,2.44959518]
[1739543743755,3.2078,2706.0,2705.7,1.71054518]
[1739543743963,0.73904,2705.8,2705.7,1.71054518]
[1739543744161,0.73904,2705.8,2705.7,0.00554518]
[1739543744367,0.73904,2705.8,2705.7,1.70954518]
[1739543745069,3.2078,2706.0,2705.7,1.70954518]
[1739543745269,0.5878,2706.2,2706.0,0.73897]
[1739543745467,3.2078,2706.3,2705.8,3.02198246]
[1739543745767,3.2078,2706.3,2706.2,0.73893]
[1739543745961,3.2078,2706.3,2706.2,2.44493]
[1739543746467,3.7637,2706.6,2706.2,1.706]
[1739543746662,3.7517,2706.9,2706.8,0.73876]
[1739543746862,3.94654,2706.9,2706.8,1.705]
[1739543747063,3.2078,2706.9,2706.8,1.705]
[1739543747263,0.7385,2707.8,2706.8,2.44376]
[1739543747467,4.3076,2707.9,2707.2,3.2078]
[1739543747768,0.5559,2707.9,2707.8,0.73849]
[1739543747965,0.5559,2707.9,2707.6,3.2078]
[1739543748159,0.5559,2707.9,2707.7,1.71]
[1739543748359,0.73849,2707.8,2707.7,1.71]
[1739543749473,1.29438,2707.9,2707.7,1.71]
[1739543749858,0.73849,2707.8,2707.7,1.71]
[1739543750462,3.7637,2707.9,2707.3,0.55094518]
[1739543750672,0.7386,2707.4,2707.3,0.00554518]
[1739543750873,0.7386,2707.4,2707.3,1.71554518]
[1739543751169,0.7386,2707.4,2707.3,0.00554518]
[1739543751568,0.7386,2707.4,2707.3,1.71454518]
[1739543752069,0.7386,2707.4,2707.3,0.00554518]
[1739543752669,1.3178,2707.4,2707.3,0.00554518]
[1739543753366,10.62808696,2707.4,2706.9,1.709]
[1739543753673,0.73874,2706.9,2706.8,19.348]
[1739543754277,0.73879,2706.7,2706.6,1.708]
[1739543754475,0.73878,2706.8,2706.6,1.708]
[1739543754772,0.73879,2706.7,2706.6,1.708]
[1739543755271,0.74430518,2706.9,2706.6,2.4468]
[1739543755476,0.00554518,2706.9,2706.6,1.708]
[1739543755877,0.73878,2706.8,2706.6,1.708]
[1739543756776,0.73878,2706.8,2706.6,2.44682]
[1739543757374,0.73879,2706.7,2706.6,1.708]
[1739543757774,0.73885,2706.5,2706.4,3.21334518]
[1739543758175,0.73885,2706.5,2706.4,0.00554518]
[1739543758572,5.16748696,2706.5,2706.1,1.707]
[1739543758877,0.73893,2706.2,2706.1,1.707]
[1739543759774,3.2078,2706.4,2705.5,3.2078]
[1739543759980,0.73898,2706.0,2705.9,0.00554518]
[1739543760583,6.73898,2706.0,2705.9,0.00554518]
[1739543760879,0.73898,2706.0,2705.9,1.49847139]
[1739543761276,0.73898,2706.0,2705.9,1.49832004]
[1739543763177,0.73898,2706.0,2705.9,0.00554518]
[1739543763378,0.73898,2706.0,2705.9,1.49787828]
[1739543763570,0.73898,2706.0,2705.9,1.49752382]
[1739543765169,0.73898,2706.0,2705.9,0.00554518]
[1739543765373,0.73898,2706.0,2705.9,1.49736817]
[1739543766482,6.73898,2706.0,2705.9,1.49736817]
[1739543766670,0.73898,2706.0,2705.9,1.49736817]
[1739543767280,0.73897,2706.1,2705.9,1.49736817]
[1739543767473,3.2078,2706.2,2706.0,1.49182299]
[1739543767684,7.99561696,2706.2,2706.1,1.49119448]
[1739543768281,13.99561696,2706.2,2706.1,0.57353634]
[1739543768586,0.73898,2706.0,2705.9,0.00554518]
[1739543768777,0.73898,2706.0,2705.9,5.18e-06]
[1739543768976,6.73898,2706.0,2705.9,5.18e-06]
[1739543769978,0.73898,2706.0,2705.9,5.18e-06]
[1739543770280,6.73898,2706.0,2705.9,5.18e-06]
[1739543770582,0.73898,2706.0,2705.9,5.18e-06]
[1739543772979,6.73898,2706.0,2705.9,5.18e-06]
[1739543774889,0.73898,2706.0,2705.9,5.18e-06]
[1739543775181,6.73898,2706.0,2705.9,5.18e-06]
[1739543775983,0.73898,2706.0,2705.9,5.18e-06]
[1739543777179,3.2078,2706.2,2705.9,5.18e-06]
[1739543777379,3.2078,2706.2,2706.0,1.703]
[1739543777686,3.2078,2706.8,2706.0,1.703]
[1739543777883,3.2078,2706.8,2706.4,0.73887]
[1739543777884,0.73883,2706.6,2706.4,0.73887]
[1739543778184,3.94659,2706.8,2706.5,1.86262]
[1739543778489,0.73882,2706.6,2706.5,2.8288]
[1739543778690,0.73882,2706.6,2706.5,3.3967]
[1739543779489,3.2078,2706.8,2706.5,3.3967]
[1739543779690,0.73882,2706.6,2706.5,3.3967]
[1739543780186,0.73882,2706.6,2706.5,2.8288]
[1739543780586,0.73882,2706.6,2706.5,2.83245644]
[1739543780787,0.73882,2706.6,2706.5,0.56285644]
[1739543780988,6.73882,2706.6,2706.5,6.44e-06]
[1739543781494,0.73898,2706.0,2705.9,5.18e-06]
[1739543781783,7.99566696,2706.0,2705.9,5.18e-06]
[1739543782292,0.73898,2706.0,2705.9,5.18e-06]
[1739543783988,4.78786696,2706.0,2705.9,5.18e-06]
[1739543784687,0.73898,2706.0,2705.9,5.18e-06]
[1739543785687,3.2078,2706.2,2705.9,5.18e-06]
[1739543785883,3.2078,2706.7,2706.0,4.9138]
[1739543786082,3.2078,2706.7,2706.2,0.73891]
[1739543786288,0.73889,2706.4,2706.3,0.547]
[1739543786692,0.73885,2706.5,2706.3,1.28589]
[1739543786897,0.73887,2706.4,2706.3,0.547]
[1739543787095,4.05443214,2706.9,2706.3,1.66621479]
[1739543787287,0.73893,2706.2,2706.1,1.1684]
[1739543788490,4.04888696,2706.6,2706.1,1.1684]
[1739543788797,0.73893,2706.2,2706.1,4.3762]
[1739543788997,0.73893,2706.2,2706.1,1.1684]
[1739543789297,3.2078,2706.7,2706.1,1.1684]
[1739543789688,3.2078,2706.7,2706.1,4.3762]
[1739543789888,0.73889,2706.4,2706.2,0.73891]
[1739543790193,0.00554518,2706.9,2706.8,0.73876]
[1739543790792,0.73879,2706.7,2706.6,1.711]
[1739543790990,0.00554518,2706.9,2706.6,2.88673118]
[1739543791191,0.73877,2706.8,2706.7,0.5388]
[1739543792390,0.00554518,2706.9,2706.5,3.2078]
[1739543792597,5.90130214,2706.9,2706.3,0.5635]
[1739543792794,3.2078,2706.4,2705.6,5.56359538]
[1739543792987,4.78778696,2706.3,2706.2,1.50133602]
[1739543793192,5.34838696,2706.3,2706.2,1.50133602]
[1739543793695,5.34838696,2706.3,2706.2,0.72365602]
[1739543793896,0.73898,2706.0,2705.6,2.2745]
[1739543794198,3.94678,2706.0,2705.6,2.2745]
[1739543794797,7.99566696,2706.0,2705.6,2.2745]
[1739543794996,3.94678,2706.0,2705.6,2.2745]
[1739543795196,4.60948696,2706.3,2705.6,5.4823]
[1739543795394,3.2078,2706.4,2705.8,0.73902]
[1739543795699,5.89595696,2706.6,2705.9,0.58330518]
[1739543795999,0.73896,2706.1,2706.0,1.31216322]
[1739543796591,7.25668696,2706.3,2706.0,1.31216322]
[1739543796998,0.73896,2706.1,2706.0,1.31216322]
[1739543797799,3.2078,2706.3,2706.2,0.73893]
[1739543798001,3.94671,2706.3,2706.0,1.88766322]
[1739543798195,3.2078,2706.3,2706.1,1.716]
[1739543798496,0.5646,2706.7,2706.1,1.716]
[1739543798497,3.2078,2706.7,2706.1,1.716]
[1739543798693,0.00554518,2706.9,2706.3,3.2078]
[1739543798899,0.00554518,2706.9,2706.5,0.73883]
[1739543799099,0.7388,2706.7,2706.5,0.73883]
[1739543799294,0.73878,2706.8,2706.3,3.2078]
[1739543799498,0.00554518,2706.9,2706.6,1.31216322]
[1739543799694,0.00554518,2706.9,2706.8,0.73876]
[1739543800090,0.00554518,2706.9,2706.8,2.61282322]
[1739543800997,3.2078,2708.5,2706.8,10.66469768]
[1739543801199,3.2078,2708.5,2707.6,3.2078]
[1739543801399,3.2078,2708.5,2707.9,3.2078]
[1739543801898,0.73833,2708.4,2708.0,1.31216322]
[1739543802101,3.21334518,2708.5,2708.0,1.31216322]
[1739543802302,3.95165518,2708.5,2708.0,1.31216322]
[1739543802493,3.95165518,2708.5,2708.0,2.05058322]
[1739543802694,0.00554518,2708.5,2708.1,1.31216322]
[1739543802894,0.74385518,2708.5,2708.2,1.718]
[1739543803094,3.21334518,2708.5,2708.2,2.45638]
[1739543803297,0.00554518,2708.5,2708.3,1.31216322]
[1739543803500,0.88564,2708.8,2708.4,0.5701]
[1739543803691,0.88564,2708.8,2708.4,1.30842]
[1739543803894,0.88564,2708.8,2708.5,1.31216322]
[1739543804202,0.88564,2708.8,2708.7,0.56967314]
[1739543804400,1.62386,2708.8,2708.7,2.64001502]
[1739543805398,1.62386,2708.8,2708.7,2.23523348]
[1739543805905,0.88564,2708.8,2708.7,2.81212971]
[1739543806499,1.62386,2708.8,2708.7,2.81212971]
[1739543806694,0.88564,2708.8,2708.7,2.81212971]
[1739543806901,1.62386,2708.8,2708.7,2.81212971]
[1739543807397,1.62386,2708.8,2708.7,2.81218111]
[1739543807699,4.83166,2708.8,2708.7,2.81218111]
[1739543808204,4.83166,2708.8,2708.7,1.31216322]
[1739543808406,4.83166,2708.8,2708.7,1.8891378]
[1739543808604,4.83166,2708.8,2708.7,1.50008838]
[1739543809901,4.09344,2708.8,2708.7,2.78613899]
[1739543810207,4.83166,2708.8,2708.7,2.78613899]
[1739543810706,4.83166,2708.8,2708.7,1.07160943]
[1739543810902,4.83166,2708.8,2708.7,0.17660943]
[1739543811104,1.84562,2708.7,2707.9,0.00554518]
[1739543811401,3.2078,2708.4,2708.1,0.73839]
[1739543811600,3.2078,2708.4,2708.2,0.92071313]
[1739543811800,3.2078,2708.4,2708.0,1.722]
[1739543812004,0.73841,2708.1,2708.0,1.722]
[1739543812198,0.73844,2708.0,2707.9,0.00554518]
[1739543812397,0.73844,2708.0,2707.9,0.92677692]
[1739543812602,0.73837,2708.3,2707.9,0.92677692]
[1739543812904,0.7384,2708.2,2708.0,0.92123174]
[1739543813100,0.7384,2708.2,2708.1,0.92123174]
[1739543813307,3.94614,2708.4,2708.2,0.73838]
[1739543813505,0.73839,2708.2,2708.0,0.73843]
[1739543813801,3.94614,2708.4,2708.2,0.73838]
[1739543814006,3.94614,2708.4,2708.3,0.92108681]
[1739543814203,3.2078,2708.4,2707.9,1.30849518]
[1739543814405,3.2078,2708.4,2708.0,0.92134342]
[1739543814709,3.94615,2708.4,2708.1,1.65973342]
[1739543814899,3.2078,2708.4,2708.3,0.73835]
[1739543815100,3.2078,2708.4,2708.3,2.65334342]
[1739543815301,3.2078,2708.7,2708.3,3.39169342]
[1739543815507,3.2078,2708.7,2708.4,0.92134342]
[1739543815699,3.2078,2708.7,2708.5,1.65962342]
[1739543815897,1.62388,2708.8,2708.6,0.92134342]
[1739543815898,0.88564,2708.8,2708.6,0.92134342]
[1739543816104,0.00554518,2709.0,2708.9,0.73819]
[1739543816302,0.00554518,2709.0,2708.9,3.40253342]
[1739543817705,0.00554518,2709.0,2708.9,3.40095321]
[1739543818099,0.00554518,2709.0,2708.9,3.40093528]
[1739543818301,5.18e-06,2709.0,2708.9,3.40093528]
[1739543818503,0.73793,2709.9,2709.5,0.73801]
[1739543818807,3.7847,2710.3,2708.8,1.8455]
[1739543818808,0.73796,2709.8,2709.6,5.86954528]
[1739543819009,3.7847,2710.3,2709.7,2.66074528]
[1739543819204,3.7847,2710.3,2709.8,0.91974528]
[1739543819410,3.7847,2710.3,2709.9,0.91974528]
[1739543819604,3.7847,2710.3,2710.0,0.91884404]
[1739543819605,0.73786,2710.1,2710.0,0.91884404]
[1739543819798,3.7847,2710.3,2709.8,0.00554518]
[1739543820002,0.73789,2710.0,2709.9,0.91887701]
[1739543820199,0.5769,2710.3,2709.9,0.91887701]
[1739543820404,3.2078,2710.6,2710.0,0.9186829]
[1739543820606,3.2078,2710.9,2710.2,3.2078]
[1739543820813,3.2078,2710.9,2710.3,2.6596829]
[1739543821108,4.39343643,2711.0,2710.3,1.741]
[1739543821412,3.2078,2710.5,2709.9,3.2078]
[1739543821713,1.84419,2710.8,2709.8,5.18e-06]
[1739543821714,0.73792,2709.9,2709.8,5.18e-06]
[1739543821907,3.94572,2709.9,2709.8,5.18e-06]
[1739543822101,0.73791,2710.0,2709.8,5.18e-06]
[1739543822302,3.2078,2710.3,2709.8,5.18e-06]
[1739543822303,0.73792,2709.9,2709.8,5.18e-06]
[1739543822803,3.94572,2709.9,2709.8,5.18e-06]
[1739543823605,9.94572,2709.9,2709.8,5.18e-06]
[1739543823906,10.51652,2709.9,2709.8,5.18e-06]
[1739543824109,4.51652,2709.9,2709.8,5.18e-06]
[1739543824306,0.73792,2709.9,2709.8,5.18e-06]
[1739543824501,9.94572,2709.9,2709.8,5.18e-06]
[1739543824706,3.94572,2709.9,2709.8,5.18e-06]
[1739543825108,9.94572,2709.9,2709.8,5.18e-06]
[1739543825611,11.69872,2709.9,2709.8,5.18e-06]
[1739543826006,10.9608,2709.9,2708.3,19.338]
[1739543826209,0.73838,2708.2,2708.1,2.3268]
[1739543826515,0.73837,2708.3,2708.1,1.754]
[1739543826712,0.73832,2708.5,2708.1,1.754]
[1739543826905,3.2078,2708.7,2708.2,0.4920072]
[1739543826906,0.73835,2708.3,2708.2,0.4920072]
[1739543827309,0.00551073,2708.6,2708.2,1.06325883]
[1739543827506,0.00551073,2708.6,2708.2,0.4920072]
[1739543827910,0.73835,2708.3,2708.2,0.4920072]
[1739543828618,0.73834,2708.4,2708.2,0.4920072]
[1739543829113,0.00551073,2708.6,2708.2,0.4920072]
[1739543829308,0.00551073,2708.6,2708.3,0.56584727]
[1739543829517,0.73835,2708.3,2708.2,0.4920072]
[1739543829813,0.00551073,2708.6,2708.2,0.56586261]
[1739543830008,0.73841,2708.1,2708.0,0.00553485]
[1739543830313,0.73841,2708.1,2708.0,0.49921727]
[1739543831010,0.73857,2707.5,2707.4,1.758]
[1739543831208,3.2078,2708.0,2707.4,2.32438763]
[1739543831402,0.73857,2707.5,2707.4,1.758]
[1739543831606,0.73857,2707.5,2707.4,2.32425044]
[1739543832404,0.7386,2707.4,2707.3,3.2078]
[1739543832607,0.7386,2707.4,2707.3,3.77388542]
[1739543832804,0.73858,2707.5,2707.3,3.77388542]
[1739543833005,0.73858,2707.5,2707.3,3.2078]
[1739543833210,4.39343643,2707.9,2707.3,3.2078]
[1739543833614,0.5771,2708.2,2707.6,3.2078]
[1739543833817,0.5771,2708.2,2707.7,0.56560263]
[1739543834012,0.73852,2707.8,2707.6,1.756]
[1739543834219,0.5771,2708.2,2707.7,0.56558543]
[1739543834514,0.73849,2707.8,2707.6,4.9638]
[1739543835017,0.73847,2707.9,2707.7,0.56549114]
[1739543835214,3.2078,2708.3,2707.8,0.56542916]
[1739543835413,0.73841,2708.1,2707.8,0.73848]
[1739543835611,3.2078,2708.3,2707.7,0.5551]
[1739543835823,0.73843,2708.1,2707.8,0.5653375]
[1739543836017,0.00551073,2708.6,2707.7,1.1341]
[1739543836217,0.00551073,2708.6,2708.2,3.2078]
[1739543836608,0.73833,2708.4,2708.2,3.2078]
[1739543836811,0.73835,2708.3,2708.2,1.761]
[1739543838119,0.73844,2708.0,2707.9,3.2078]
[1739543838324,0.73844,2708.0,2707.9,2.32430888]
[1739543838516,0.7384,2708.2,2707.9,2.32430888]
[1739543838717,0.73842,2708.1,2707.9,1.759]
[1739543839219,0.73844,2708.0,2707.9,1.759]
[1739543839420,0.73844,2708.0,2707.9,2.32433492]
[1739543839610,0.73842,2708.1,2707.9,1.759]
[1739543839816,1.85121073,2708.6,2707.9,1.759]
[1739543840012,0.73843,2708.1,2707.9,1.759]
[1739543840319,0.00551073,2708.6,2707.9,1.759]
[1739543840520,0.00551073,2708.6,2708.0,1.30358617]
[1739543840818,0.00551073,2708.6,2708.1,3.77282837]
[1739543841025,0.73844,2708.0,2707.9,1.759]
[1739543841217,0.73839,2708.2,2707.9,3.0626415]
[1739543841516,0.73839,2708.2,2708.0,0.73844]
[1739543841722,0.73839,2708.2,2707.9,1.759]
[1739543841920,0.73839,2708.2,2708.0,0.73843]
[1739543842115,0.73839,2708.2,2708.1,3.2078]
[1739543843320,0.73844,2708.0,2707.9,1.759]
[1739543843518,3.2078,2708.5,2708.0,0.73842]
[1739543843823,3.2078,2708.5,2708.1,0.56510464]
[1739543844022,0.73834,2708.4,2708.2,0.73837]
[1739543844223,0.00551073,2708.6,2708.2,0.48955165]
[1739543844719,0.73835,2708.4,2708.3,0.48955165]
[1739543845317,0.74381073,2708.6,2708.3,0.48955165]
[1739543845522,0.73831,2708.5,2708.3,0.73833]
[1739543845717,0.00551073,2708.6,2708.4,1.754]
[1739543845923,0.7383,2708.5,2708.4,1.754]
[1739543846322,0.00551073,2708.6,2708.1,3.2078]
[1739543846623,0.73838,2708.2,2708.1,3.2078]
[1739543848021,0.73849,2707.8,2707.7,1.1341]
[1739543848328,0.73848,2707.9,2707.7,3.62461]
[1739543848516,0.73849,2707.8,2707.7,4.11442824]
[1739543848919,0.73845,2708.0,2707.8,0.73848]
[1739543849118,2.38389,2708.3,2707.8,0.73848]
[1739543849724,0.73846,2708.0,2707.9,0.48981824]
[1739543849924,2.38389,2708.3,2707.9,0.48981824]
[1739543849925,0.538,2708.3,2707.9,0.48981824]
[1739543850121,0.00551073,2708.6,2707.9,0.48981824]
[1739543850322,0.73841,2708.1,2708.0,1.05565927]
[1739543850720,0.73839,2708.2,2708.0,1.79415174]
[1739543851021,0.73836,2708.3,2708.1,1.79405032]
[1739543851215,0.73836,2708.3,2708.2,1.751]
[1739543851216,0.73835,2708.3,2708.2,1.751]
[1739543851421,0.00551073,2708.6,2708.2,1.751]
[1739543851720,0.73834,2708.4,2708.2,2.97918824]
[1739543852225,0.73833,2708.4,2708.3,0.48981824]
[1739543852627,4.77053398,2708.4,2708.3,0.48981824]
[1739543853332,7.97833398,2708.4,2708.3,0.48981824]
[1739543853533,0.73844,2708.0,2707.9,3.2078]
[1739543853724,7.24000398,2708.4,2707.9,3.77529352]
[1739543854034,0.73841,2708.1,2708.0,1.0589476]
[1739543854623,7.97841398,2708.1,2708.0,0.49145408]
[1739543854925,0.73855,2707.6,2707.5,3.2078]
[1739543855129,0.73855,2707.6,2707.3,2.48662]
[1739543855130,7.24000398,2707.8,2707.3,1.748]
[1739543855327,0.7386,2707.4,2707.3,1.748]
[1739543855832,7.24000398,2707.8,2707.1,3.2078]
[1739543855833,0.73863,2707.3,2707.1,3.2078]
[1739543856324,3.2078,2707.5,2707.1,3.2078]
[1739543856520,0.73862,2707.4,2707.1,3.2078]
[1739543856729,0.73859,2707.5,2707.2,0.74416485]
[1739543856924,0.5784,2707.7,2707.2,0.74416485]
[1739543856925,0.5784,2707.7,2707.2,0.00553485]
[1739543857126,7.24000398,2707.8,2707.2,1.75253485]
[1739543857326,3.2078,2707.8,2707.2,1.75253485]
[1739543857632,0.73856,2707.6,2707.3,1.1816]
[1739543858132,0.73856,2707.6,2707.4,0.73859]
[1739543858335,0.73859,2707.5,2707.3,1.1816]
[1739543858532,0.73854,2707.7,2707.4,0.73858]
[1739543858831,0.73852,2707.7,2707.3,1.1816]
[1739543859231,3.2078,2707.8,2707.3,1.1816]
[1739543859232,0.73851,2707.8,2707.5,3.94637]
[1739543859631,4.03220398,2708.1,2707.5,3.2078]
[1739543859932,0.73854,2707.7,2707.5,3.2078]
[1739543860133,0.5784,2708.2,2707.5,3.2078]
[1739543860433,0.73839,2708.2,2707.8,3.2078]
[1739543860626,1.84576,2708.5,2707.9,2.3099]
[1739543860833,0.73844,2708.0,2707.9,2.3099]
[1739543861129,0.73842,2708.1,2707.9,3.04836]
[1739543861333,4.03220398,2708.4,2707.9,2.3099]
[1739543861540,0.73843,2708.1,2707.9,2.3099]
[1739543861731,0.73844,2708.0,2707.9,2.3099]
[1739543862532,0.73842,2708.1,2707.9,3.04835]
[1739543862732,0.73836,2708.3,2708.1,0.73841]
[1739543862932,3.77381073,2708.6,2707.9,2.3099]
[1739543863131,0.73842,2708.1,2707.9,3.04836]
[1739543863333,0.73839,2708.2,2707.9,2.3099]
[1739543863538,3.77381073,2708.6,2708.0,1.33101]
[1739543864039,3.77381073,2708.6,2708.0,0.5926]
[1739543864336,0.73838,2708.2,2708.0,1.33102]
[1739543864537,3.77381073,2708.6,2708.0,0.5926]
[1739543864736,0.73841,2708.1,2708.0,0.5926]
[1739543864940,0.73839,2708.2,2708.0,0.5926]
[1739543865238,0.73839,2708.2,2708.0,1.33102]
[1739543865627,0.73839,2708.2,2708.0,0.5926]
[1739543865830,0.56601073,2708.6,2708.3,0.73834]
[1739543866031,0.56601073,2708.6,2708.1,3.2078]
[1739543866032,0.73834,2708.4,2708.2,0.73837]
[1739543866538,0.56601073,2708.6,2708.1,3.2078]
[1739543866724,0.73835,2708.3,2708.2,0.56072364]
[1739543866928,3.77381073,2708.6,2708.2,1.04856743]
[1739543867129,0.73831,2708.5,2708.3,1.29906364]
[1739543867331,0.73831,2708.5,2708.4,1.04856743]
[1739543867527,0.00551073,2708.6,2708.4,1.04856743]
[1739543867735,0.74381073,2708.6,2708.5,0.56053714]
[1739543868034,0.74381073,2708.6,2708.5,1.04838093]
[1739543868236,0.00551073,2708.6,2708.5,1.04838093]
[1739543868435,0.00551073,2708.6,2708.5,1.78668093]
[1739543868828,0.00551073,2708.6,2708.5,1.60478093]
[1739543869033,0.74378073,2708.6,2708.5,0.48784379]
[1739543871039,0.00551073,2708.6,2708.5,0.48784379]
[1739543871242,0.74378073,2708.6,2708.5,0.48784379]
[1739543872436,0.00551073,2708.6,2708.5,1.78620871]
[1739543872642,3.2078,2709.5,2708.5,1.04790871]
[1739543872842,3.2078,2709.5,2709.0,3.2078]
[1739543873040,0.73814,2709.1,2709.0,4.9408]
[1739543873737,0.73814,2709.1,2709.0,1.733]
[1739543874032,0.73814,2709.1,2709.0,2.22084379]
[1739543874439,0.73814,2709.1,2709.0,1.733]
[1739543875139,4.03773883,2709.3,2709.0,1.733]
[1739543875333,0.73812,2709.2,2709.0,1.733]
[1739543875538,4.03773883,2709.3,2709.0,1.733]
[1739543876047,4.03773883,2709.3,2709.1,0.48645969]
[1739543876048,0.73812,2709.2,2709.1,0.48645969]
[1739543876240,0.00553485,2709.3,2709.1,0.48645969]
[1739543876445,0.73811,2709.2,2709.1,0.48645969]
[1739543877642,4.03773883,2709.3,2709.0,1.733]
[1739543877846,0.73812,2709.2,2709.0,1.733]
[1739543878047,4.03773883,2709.3,2709.0,1.733]
[1739543878248,0.73814,2709.1,2709.0,1.733]
[1739543878650,0.73816,2709.0,2708.9,3.2078]
[1739543878837,0.73819,2708.9,2708.8,1.72953485]
[1739543880051,0.73819,2708.9,2708.8,2.21552111]
[1739543880549,0.73819,2708.9,2708.8,0.49152111]
[1739543881349,0.73819,2708.9,2708.8,0.00553485]
[1739543882952,4.03220398,2709.0,2708.8,3.95154485]
[1739543882953,0.73818,2709.0,2708.8,3.95154485]
[1739543883149,0.73818,2709.0,2708.8,3.69918861]
[1739543883345,0.73818,2709.0,2708.9,0.5703]
[1739543883757,4.03773883,2709.3,2708.9,0.5703]
[1739543883952,0.74362485,2709.3,2709.1,3.94593]
[1739543884159,0.74362485,2709.3,2709.1,5.67293]
[1739543884361,0.73811,2709.2,2709.1,1.727]
[1739543884565,4.03773883,2709.3,2708.9,0.5703]
[1739543884861,0.73819,2708.9,2708.8,3.21333485]
[1739543885562,0.73819,2708.9,2708.8,0.00553485]
[1739543885767,4.51219972,2708.9,2708.8,0.00553485]
[1739543886281,3.95549972,2708.9,2708.8,0.00553485]
[1739543887262,7.16329972,2708.9,2708.8,0.00553485]
[1739543890569,3.95549972,2708.9,2708.8,0.49261742]
[1739543890766,14.15210972,2708.9,2707.2,4.69870999]
[1739543890968,3.95574972,2708.0,2707.8,3.2078]
[1739543891170,3.95574972,2708.0,2707.9,0.56017227]
[1739543891171,3.21730972,2708.0,2707.9,0.56017227]
[1739543891371,3.21730972,2708.0,2707.9,0.56019941]
[1739543891862,3.21730972,2708.0,2707.9,0.56018575]
[1739543892370,3.95574972,2708.0,2707.9,0.56018575]
[1739543893468,3.21730972,2708.0,2707.9,0.56022552]
[1739543893667,4.03233655,2708.6,2707.9,0.56022552]
[1739543893866,4.03233655,2708.6,2708.1,3.2078]
[1739543894063,0.73835,2708.4,2708.2,0.56022552]
[1739543894266,4.03233655,2708.6,2708.1,3.7789]
[1739543894462,0.73826,2708.7,2708.4,3.2078]
[1739543894670,0.73829,2708.6,2708.5,0.56014595]
[1739543895068,0.5933,2708.8,2708.5,0.56014595]
[1739543895372,0.73828,2708.6,2708.4,3.7717]
[1739543895563,0.73828,2708.6,2708.5,0.56005299]
[1739543895965,0.73826,2708.7,2708.5,0.56005299]
[1739543896165,3.2078,2709.4,2708.6,0.55996867]
[1739543896364,4.03233655,2709.2,2708.7,6.08297458]
[1739543896574,0.73819,2708.9,2708.8,0.55987458]
[1739543896774,0.73819,2709.0,2708.8,0.55987458]
[1739543896973,0.73819,2709.0,2708.9,0.55987458]
[1739543897771,0.73822,2708.8,2708.7,5.5231]
[1739543897973,0.73818,2709.0,2708.7,6.08286734]
[1739543898173,0.73819,2708.9,2708.8,0.55976734]
[1739543898574,0.73818,2709.0,2708.8,0.55976734]
[1739543898771,0.73816,2709.0,2708.9,0.55976734]
[1739543899073,4.03233655,2709.2,2708.9,0.55980142]
[1739543899274,0.73819,2709.0,2708.7,5.5231]
[1739543899473,4.03233655,2709.2,2708.8,0.55976932]
[1739543899669,0.73819,2709.0,2708.9,0.55976932]
[1739543900971,4.03233655,2709.2,2708.9,0.55976932]
[1739543901173,0.73815,2709.1,2709.0,0.55978442]
[1739543901474,0.73819,2708.9,2708.7,6.26134]
[1739543901674,0.00553485,2709.3,2708.8,2.30380455]
[1739543901876,4.85e-06,2709.3,2709.2,0.73811]
[1739543902082,0.5425,2710.2,2709.2,0.55974476]
[1739543902280,0.5425,2710.2,2709.7,3.2078]
[1739543902472,0.73792,2709.9,2709.8,0.55974476]
[1739543902672,0.73801,2709.6,2709.3,2.3048]
[1739543902973,0.73796,2709.8,2709.6,0.73799]
[1739543903178,0.73796,2709.8,2709.7,0.55915939]